{"text_format":"1","workbook":"xlsx","n_sheets":1,"sheets":["Потребность"],"not_rendered":{"charts":0,"images":0,"macros":0,"external_links":0,"defined_names":0,"comments":0,"pivot_tables":0},"unopened":[],"bounds":{"document_bytes":16777216,"sheet_cells":100000,"rows_first":2000,"rows_last":500,"rows_between":2000,"halvings":0,"cell_chars":16384,"cell_head_chars":4096},"cells_cut":0,"cells_raw":0,"read":"whole","date_system":"1900"}

{"sheet":"Потребность","index":0,"n_rows":84,"n_cols":7,"rows_kept":84,"cut":false,"hidden":false,"merged":[[4,0,4,1],[83,0,83,1],[5,0,11,0],[54,0,60,0],[61,0,67,0],[68,0,75,0],[76,0,82,0],[12,0,18,0],[1,1,2,6],[19,0,25,0],[26,0,32,0],[33,0,39,0],[40,0,46,0],[47,0,53,0]]}
[]
[null,"СВЕДЕНИЯ О ПОТРЕБНОСТИ В СПЕЦИАЛИСТАХ СО СРЕДНИМ  СПЕЦИАЛЬНЫМ  МЕДИЦИНСКИМ,ФАРМАЦЕВТИЧЕСКИМ ОБРАЗОВАНИЕМ Могилевской области на 2023 год"]
[]
[]
["наименование должности",null,"фармацевт","фармацевт-ассистент","фармацевт-лаборант","фармацевт-рецептар","Итого фармацевтических работников"]
["Потребность в специалистах со средним образованием","Белыничская  ЦРБ",null,null,null,null,{"$f":"SUM(C6:F6)","v":0}]
[null,"Быховская ЦРБ",1,null,null,null,1]
[null,"Глусская ЦРБ",null,null,null,null,0]
[null,"Горецкая ЦРБ ",null,null,null,null,0]
[null,"Дрибинская ЦРБ",1,null,null,null,1]
[null,"Кировская ЦРБ",null,null,null,null,0]
[null,"Климовичская ЦРБ",null,2,null,null,2]
["Потребность в специалистах со средним образованием","Кличевская ЦРБ",1,null,null,null,1]
[null,"Костюковичская ЦРБ",null,null,null,null,0]
[null,"Краснопольская ЦРБ",null,null,null,null,0]
[null,"Кричевская ЦРБ",null,null,null,null,0]
[null,"Круглянская ЦРБ",null,null,null,null,0]
[null,"Мстиславская ЦРБ",null,null,null,null,0]
[null,"Осиповичская ЦРБ",null,null,null,null,0]
["Потребность в специалистах со средним образованием","Славгородская ЦРБ",1,null,null,null,1]
[null,"Хотимская ЦРБ",null,null,null,null,0]
[null,"Чаусская ЦРБ",1,null,null,null,1]
[null,"Чериковская ЦРБ",null,null,null,null,0]
[null,"Шкловская ЦРБ",1,null,null,null,1]
[null,"МОКБ",null," ",null,null,0]
[null,"МОДБ",null,null,null,1,1]
["Потребность в специалистах со средним образованием","МОПБ",null,null,null,null,0]
[null,"госпИОВ",null,null,null,null,0]
[null,"МОПТД",null,null,null,null,0]
[null,"МОКВД",null,1,null,null,1]
[null,"МООД",1,null,null,null,1]
[null,"МОНД",null,null,null,null,0]
[null,"МОЛДЦ",null,null,null,null,0]
["Потребность в специалистах со средним образованием","МОСП",null,null,null,null,0]
[null,"МОДСП",null,null,null,null,0]
[null,"МОСПК",null,null,null,null,0]
[null,"Космос",null,null,null,null,0]
[null,"пат бюро",null,null,null,null,{"$f":"SUM(C38:F38)","v":0}]
[null,"МРЭК",null,null,null,null,0]
[null,"МОБМР",null,null,null,null,0]
["Потребность в специалистах со средним образованием","УЗ \"Могилевская центральная поликлиника\"",null,null,null,null,0]
[null,"УЗ \"Могилевская  поликлиника № 2\"",null,null,null,null,0]
[null,"УЗ \"Могилевская  поликлиника № 3\"",null,null,null,null,0]
[null,"УЗ \"Могилевская  поликлиника № 4\"",null,null,null,null,0]
[null,"УЗ \"Могилевская  поликлиника № 5\"",null,null,null,null,0]
[null,"УЗ \"Могилевская  поликлиника № 6\"",null,null,null,null,0]
[null,"УЗ \"Могилевская  поликлиника № 7\"",null,null,null,null,0]
["Потребность в специалистах со средним образованием","УЗ \"Могилевская  поликлиника № 8\"",null,null,null,null,0]
[null,"УЗ \"Могилевская  поликлиника № 9\"",null,null,null,null,0]
[null,"УЗ \"Могилевская  поликлиника №10\"",null,null,null,null,0]
[null,"УЗ \"Могилевская  поликлиника №11\"",null,null,null,null,0]
[null,"УЗ \"Могилевская  поликлиника №12\"",null,null,null,null,0]
[null,"УЗ \"Могилевская детская поликлиника\"",null,null,null,null,0]
[null,"УЗ \"Могилевская детская  поликлиника № 1\"",null,null,null,null,0]
["Потребность в специалистах со средним образованием","УЗ \"Могилевская детская  поликлиника № 2\"",null,null,null,null,0]
[null,"УЗ \"Могилевская детская  поликлиника № 4\"",null,null,null,null,0]
[null,"УЗ \"Могилевская  стоматологическая поликлиника\"",null,null,null,null,0]
[null,"УЗ \"Могилевская  стоматологическая поликлиника № 2\"",null,null,null,null,0]
[null,"УЗ \"Могилевская  детская стоматологическая поликлиника\"",null,null,null,null,0]
[null,"УЗ \"Могилевская городская станция СМП\"",null,null,null,null,0]
[null,"УЗ \"Могилевский Дом ребенка\"",null,null,null,null,0]
["Потребность в специалистах со средним образованием","МГБ СМП",null,null,null,2,2]
[null,"МБ № 1",null,null,null,1,1]
[null,"МИБ",null,null,null,null,0]
[null,"БЦБ",null,null,null,null,0]
[null,"БГБСМП",2,null,null,null,2]
[null,"БГДБ",null,null,null,null,0]
[null,"БРД",null,null,null,null,0]
["Потребность в специалистах со средним образованием","БМОД",null,1,null,null,1]
[null,"БССНП",null,null,null,null,{"$f":"SUM(C70:F70)","v":0}]
[null,"БЗСПК",null,null,null,null,0]
[null,"БГП 1",null,null,null,null,0]
[null,"БГП 2",null,null,null,null,0]
[null,"БГП 3",null,null,null,null,0]
[null,"БГП 4",null,null,null,null,0]
[null,"БГП 5",null,null,null,null,0]
["Потребность в специалистах со средним образованием","БГП 6",null,null,null,null,0]
[null,"БГП 7",null,null,null,null,0]
[null,"БГСП 1",null,null,null,null,0]
[null,"БСП 2",null,null,null,null,0]
[null,"БДСП",null,null,null,null,0]
[null,"КУП",null,null,null,null,0]
[null,"наименование учреждения здравоохранения",null,null,null,null,0]
["ИТОГО по региону:",null,{"$f":"SUM(C6:C83)","v":9},4,0,4,17]